fUSD/lending_fUSD_20240912
["ID","MTS","AMOUNT","RATE_DAILY","PERIOD"]
[337835852,1726145434460,-883.08,0.00014794,2]
[337835853,1726145434469,-883.08,0.00014794,2]
[337835854,1726145434479,-2842.93,0.00014794,2]
[337835855,1726145434488,-2842.93,0.00014794,2]
[337835856,1726145434497,-883.08,0.00014794,2]
[337835857,1726145434507,-883.08,0.00014794,2]
[337835858,1726145434516,-883.08,0.00014794,2]
[337835859,1726145434525,-2842.93,0.00014794,2]
[337835860,1726145434534,-883.08,0.00014794,2]
[337835861,1726145434544,-2842.93,0.00014794,2]
[337835862,1726145434557,-2842.93,0.00014794,2]
[337835863,1726145434567,-2842.93,0.00014794,2]
[337835864,1726145434577,-2842.93,0.00014794,2]
[337835865,1726145434587,-2842.93,0.00014794,2]
[337835866,1726145434597,-2842.93,0.00014794,2]
[337835867,1726145434607,-2842.93,0.00014794,2]
[337835868,1726145434617,-1192.27175802,0.00014794,2]
[337835869,1726145435545,-377.96988963,0.00014794,2]
[337835870,1726145435571,-1272.68835235,0.00014794,2]
[337835871,1726145435580,-2842.93,0.00014794,2]
[337835872,1726145435590,-1650.3488659,0.00014794,2]
[337835873,1726145435603,-1192.5811341,0.00014794,2]
[337835874,1726145435613,-2842.93,0.00014794,2]
[337835875,1726145435622,-2842.93,0.00014794,2]
[337835876,1726145435631,-883.08,0.00014794,2]
[337835877,1726145435640,-2842.93,0.00014794,2]
[337835878,1726145435649,-883.08,0.00014794,2]
[337835879,1726145435657,-2842.93,0.00014794,2]
[337835880,1726145435666,-883.08,0.00014794,2]
[337835881,1726145435676,-2842.93,0.00014794,2]
[337835882,1726145435685,-883.08,0.00014794,2]
[337835883,1726145435694,-2842.93,0.00014794,2]
[337835884,1726145435703,-883.08,0.00014794,2]
[337835885,1726145435713,-2842.93,0.00014794,2]
[337835886,1726145435722,-883.08,0.00014794,2]
[337835887,1726145435731,-2842.93,0.00014794,2]
[337835888,1726145435740,-883.17182267,0.00014794,2]
[337835889,1726145435749,-2842.93,0.00014794,2]
[337835890,1726145435758,-2842.93,0.00014794,2]
[337835891,1726145435767,-2843.11982761,0.00014794,2]
[337835892,1726145435776,-681.80422192,0.00014794,2]
[337835893,1726145435814,-1429.49577808,0.00014794,2]
[337835894,1726145435823,-935.80280022,0.00014794,2]
[337835895,1726145435840,-308.06435349,0.00014794,2]
[337835896,1726145435873,-867.43284629,0.00014794,2]
[337835897,1726145435883,-186.25357731,0.00014794,2]
[337835898,1726145435895,-1925.04642269,0.00014794,2]
[337835899,1726145435905,-1701.41418861,0.00014794,2]
[337835900,1726145435918,-409.88581139,0.00014794,2]
[337835901,1726145435927,-2111.3,0.00014794,2]
[337835902,1726145435936,-2111.3,0.00014794,2]
[337835903,1726145435946,-2111.3,0.00014794,2]
[337835904,1726145435955,-2111.3,0.00014794,2]
[337835905,1726145435965,-2111.3,0.00014794,2]
[337835906,1726145435976,-2111.3,0.00014794,2]
[337835907,1726145435986,-2111.3,0.00014794,2]
[337835908,1726145435995,-2111.3,0.00014794,2]
[337835909,1726145436004,-2111.3,0.00014794,2]
[337835910,1726145436013,-2111.3,0.00014794,2]
[337835911,1726145436024,-2111.3,0.00014794,2]
[337835912,1726145436033,-2111.3,0.00014794,2]
[337835913,1726145436042,-2111.3,0.00014794,2]
[337835914,1726145436052,-2111.3,0.00014794,2]
[337835915,1726145436061,-2111.3,0.00014794,2]
[337835916,1726145436070,-2111.3,0.00014794,2]
[337835917,1726145436079,-2111.3,0.00014794,2]
[337835918,1726145436088,-1260.56,0.00014794,2]
[337835919,1726145436099,-500.0,0.00014794,2]
[337835920,1726145436108,-666.33869654,0.00014794,2]
[337835921,1726145436151,-1284.40976051,0.00014794,2]
[337835922,1726145436162,-160.55154295,0.00014794,2]
[337835923,1726145436172,-245.2896106,0.00014794,2]
[337835924,1726145436188,-575.10458265,0.00014794,2]
[337835931,1726145438190,-5901.89999999,0.00014794,2]
[337835932,1726145438202,-21242.7323858,0.00014794,2]
[337835933,1726145438215,-58000.0,0.00014794,2]
[337835934,1726145438226,-634.7042152,0.00014794,2]
[337835935,1726145438250,-580.58,0.00014794,2]
[337836128,1726145440155,-3172.94922131,0.00014794,2]
[337836141,1726145440277,-6757.96750055,0.00014794,2]
[337836144,1726145440288,-33857.28374061,0.00014794,2]
[337836146,1726145440298,-440.16580675,0.00014794,2]
[337836148,1726145440310,-2111.3,0.00014794,2]
[337836150,1726145440320,-1260.56,0.00014794,2]
[337836152,1726145440330,-2111.40462242,0.00014794,2]
[337836153,1726145440339,-1260.56,0.00014794,2]
[337836155,1726145440350,-1260.56,0.00014794,2]
[337836157,1726145440361,-1260.56,0.00014794,2]
[337836159,1726145440370,-1260.56,0.00014794,2]
[337836161,1726145440380,-1260.56,0.00014794,2]
[337836163,1726145440389,-1260.56,0.00014794,2]
[337836165,1726145440399,-1260.56,0.00014794,2]
[337836167,1726145440408,-1260.56,0.00014794,2]
[337836169,1726145440417,-1260.56,0.00014794,2]
[337836171,1726145440427,-1260.56,0.00014794,2]
[337836173,1726145440436,-1260.56,0.00014794,2]
[337836175,1726145440445,-1260.56,0.00014794,2]
[337836176,1726145440454,-1260.56,0.00014794,2]
[337836178,1726145440463,-1260.56,0.00014794,2]
[337836180,1726145440473,-1260.56,0.00014794,2]
[337836181,1726145440482,-1260.56,0.00014794,2]
[337836183,1726145440491,-1260.56,0.00014794,2]
[337836185,1726145440500,-1260.56,0.00014794,2]
[337836187,1726145440509,-1260.56,0.00014794,2]
[337836189,1726145440519,-1260.56,0.00014794,2]
[337836191,1726145440528,-975.63,0.00014794,2]
[337836192,1726145440537,-1260.73296827,0.00014794,2]
[337836194,1726145440546,-975.63,0.00014794,2]
[337836196,1726145440559,-975.63,0.00014794,2]
[337836198,1726145440568,-975.63,0.00014794,2]
[337836200,1726145440578,-2728.78,0.00014794,2]
[337836202,1726145440587,-975.63,0.00014794,2]
[337836204,1726145440597,-2728.78,0.00014794,2]
[337836206,1726145440606,-975.63,0.00014794,2]
[337836208,1726145440615,-2728.78,0.00014794,2]
[337836209,1726145440624,-975.63,0.00014794,2]
[337836211,1726145440633,-2728.78,0.00014794,2]
[337836213,1726145440643,-975.63,0.00014794,2]
[337836215,1726145440653,-2728.78,0.00014794,2]
[337836217,1726145440663,-975.63,0.00014794,2]
[337836219,1726145440672,-421.88135725,0.00014794,2]
[337836439,1726145442997,-2306.89864275,0.00014794,2]
[337836441,1726145443007,-975.63,0.00014794,2]
[337836443,1726145443017,-2728.78,0.00014794,2]
[337836445,1726145443026,-975.63,0.00014794,2]
[337836447,1726145443035,-2728.78,0.00014794,2]
[337836449,1726145443045,-975.63,0.00014794,2]
[337836451,1726145443057,-2728.78,0.00014794,2]
[337836453,1726145443066,-975.63,0.00014794,2]
[337836455,1726145443075,-2728.78,0.00014794,2]
[337836457,1726145443084,-975.63,0.00014794,2]
[337836459,1726145443094,-960.38,0.00014794,2]
[337836461,1726145443103,-2728.78,0.00014794,2]
[337836463,1726145443113,-975.63,0.00014794,2]
[337836465,1726145443122,-960.38,0.00014794,2]
[337836467,1726145443132,-2728.78,0.00014794,2]
[337836469,1726145443141,-960.38,0.00014794,2]
[337836471,1726145443151,-975.63,0.00014794,2]
[337836473,1726145443160,-2728.78,0.00014794,2]
[337836475,1726145443170,-960.38,0.00014794,2]
[337836477,1726145443179,-975.63,0.00014794,2]
[337836479,1726145443188,-2728.78,0.00014794,2]
[337836481,1726145443198,-960.38,0.00014794,2]
[337836483,1726145443207,-975.63,0.00014794,2]
[337836484,1726145443216,-2728.78,0.00014794,2]
[337836486,1726145443225,-591.0,0.00014794,2]
[337836487,1726145443234,-960.38,0.00014794,2]
[337836489,1726145443243,-881.34,0.00014794,2]
[337836491,1726145443253,-975.63,0.00014794,2]
[337836493,1726145443265,-2728.78,0.00014794,2]
[337836495,1726145443274,-591.0,0.00014794,2]
[337836497,1726145443283,-960.38,0.00014794,2]
[337836499,1726145443292,-881.34,0.00014794,2]
[337836501,1726145443305,-975.63,0.00014794,2]
[337836503,1726145443315,-2728.78,0.00014794,2]
[337836505,1726145443324,-591.0,0.00014794,2]
[337836507,1726145443333,-960.38,0.00014794,2]
[337836509,1726145443343,-975.63,0.00014794,2]
[337836510,1726145443352,-881.34,0.00014794,2]
[337836512,1726145443361,-302.20135374,0.00014794,2]
[337836562,1726145444614,-1615.41903923,0.00014794,2]
[337836563,1726145444625,-811.15960703,0.00014794,2]
[337836565,1726145444634,-348.84039297,0.00014794,2]
[337836567,1726145444647,-242.15960703,0.00014794,2]
[337836568,1726145444656,-500.0,0.00014794,2]
[337836569,1726145444666,-960.38,0.00014794,2]
[337836570,1726145444675,-881.34,0.00014794,2]
[337836571,1726145444684,-591.0,0.00014794,2]
[337836572,1726145444694,-975.63,0.00014794,2]
[337836573,1726145444703,-2728.78,0.00014794,2]
[337836574,1726145444713,-125.32202087,0.00014794,2]
[337836576,1726145446751,-250.0,0.00014556,2]
[337836577,1726145446760,-170.6817263,0.00014694,2]
[337836578,1726145446770,-835.05797913,0.00014794,2]
[337836579,1726145446779,-500.0,0.00014794,2]
[337836580,1726145446788,-881.34,0.00014794,2]
[337836581,1726145446797,-362.92029457,0.00014794,2]
[337836582,1726145446827,-545.47600381,0.00014794,2]
[337836583,1726145546201,600.0,0.00011164,2]
[337836584,1726145546280,500.0,0.00011164,2]
[337836585,1726145589823,628.07,0.00011963,2]
[337836589,1726146106339,596.66,0.00011831,2]
[337836607,1726146518457,206.32422527,0.00010959,2]
[337836608,1726146518478,125.46577473,0.00010959,2]
[337836609,1726146547299,-150.0,0.0001329,2]
[337836610,1726146547326,-150.00000001,0.0001329,2]
[337836611,1726146547354,-250.0,0.00013532,2]
[337836612,1726146547380,-250.0,0.00013682,2]
[337836613,1726146547408,-1000.0,0.00013695,2]
[337836614,1726146547436,-160.65,0.00013729,2]
[337836615,1726146547463,-250.0,0.00013745,2]
[337836616,1726146547490,-150.24,0.00013814,2]
[337836617,1726146547519,-1138.41868468,0.00013879,2]
[337836618,1726146547546,-204.31348708,0.00013904,2]
[337836619,1726146547600,-295.68651292,0.00013904,2]
[337836620,1726146547628,-51.34170165,0.00013956,2]
[337836621,1726146572312,-230.5492987,0.00013774,2]
[337836659,1726146632937,-150.24,0.00013713,2]
[337836660,1726146632947,-19.4507013,0.00013774,2]
[337836661,1726146632956,-111.42829835,0.00013956,2]
[337836662,1726146632966,-174.22974844,0.00013995,2]
[337836663,1726146632975,-596.66,0.00014095,2]
[337836664,1726146632986,-174.22974843,0.00014097,2]
[337836665,1726146632994,-174.22974843,0.00014198,2]
[337836666,1726146633003,-348.4641,0.00014298,2]
[337836667,1726146633012,-300.0,0.00014497,2]
[337836668,1726146633022,-253.83279047,0.00014498,2]
[337836709,1726146638155,-669.63102633,0.00014498,2]
[337836710,1726146638321,-187.08529257,0.00014498,2]
[337836711,1726146638330,-1074.5056316,0.00014498,2]
[337836712,1726146638339,-240.26777702,0.00014498,2]
[337836713,1726146638385,-1730.86303746,0.00014498,2]
[337836714,1726146638394,-188.007,0.00014556,2]
[337836715,1726146638403,-262.247,0.00014556,2]
[337836716,1726146638411,-162.98987787,0.00014556,2]
[337836717,1726146638423,-7.49512213,0.00014556,2]
[337836718,1726146638432,-1148.56487787,0.000146,2]
[337836719,1726146638492,-576.43512213,0.000146,2]
[337836720,1726146638501,-421.53684401,0.00014631,2]
[337836721,1726146638510,-150.0,0.00014646,2]
[337836722,1726146638519,-153.86292,0.00014646,2]
[337836723,1726146638529,-228.92545928,0.00014685,2]
[337836724,1726146638538,-228.92545924,0.00014686,2]
[337836725,1726146638548,-228.92545924,0.00014687,2]
[337836726,1726146638558,-228.92545924,0.00014688,2]
[337836727,1726146638567,-228.92545924,0.00014689,2]
[337836728,1726146638577,-228.92545924,0.0001469,2]
[337836729,1726146638586,-8813.41235838,0.0001469,2]
[337836873,1726146640218,-553.460626,0.0001469,2]
[337836882,1726146640303,-579.51690484,0.0001469,2]
[337836894,1726146640419,-3762.04141078,0.0001469,2]
[337836896,1726146640429,-228.92545924,0.00014691,2]
[337836898,1726146640439,-228.92545924,0.00014692,2]
[337836900,1726146640450,-228.92545924,0.00014693,2]
[337836902,1726146640460,-465.7754,0.00014694,2]
[337836904,1726146640469,-688.50128907,0.00014694,2]
[337836978,1726146641231,150.0,0.00012,2]
[337837272,1726146645080,-1124.99964315,0.00014694,2]
[337837273,1726146645091,-2741.6223,0.00014694,2]
[337837274,1726146645103,-2944.87676778,0.00014694,2]
[337837275,1726146645112,-320.5421,0.00014694,2]
[337837276,1726146645122,-299.591,0.00014694,2]
[337837277,1726146645131,-158.272,0.00014694,2]
[337837278,1726146645140,-158.96672704,0.00014694,2]
[337837279,1726146645149,-228.92545924,0.00014694,2]
[337837280,1726146645159,-150.0,0.000147,2]
[337837281,1726146645168,-150.0,0.00014783,2]
[337837282,1726146645177,-151.02,0.00014784,2]
[337837283,1726146645187,-23726.00766315,0.00014784,2]
[337837284,1726146645237,-250.22717632,0.00014784,2]
[337837316,1726146646552,-2892.6898,0.00014784,2]
[337837317,1726146646564,-17350.8,0.00014784,2]
[337837323,1726146701288,555.0,0.00011986,2]
[337837324,1726146720083,160.47226532,0.00014253,30]
[337837325,1726146740332,500.0,0.00011164,2]
[337837335,1726146782503,500.0,0.00011164,2]
[337837337,1726146930017,1050.0,0.00011,2]
[337837340,1726147068933,166.2,0.00010959,2]
[337837342,1726147245619,545.05,0.00011573,2]
[337837355,1726147558589,162.75,0.00010959,2]
[337837372,1726147708389,-150.0,0.0001329,2]
[337837374,1726147708415,-171.91718399,0.00013311,2]
[337837375,1726147708442,-250.0,0.00013377,2]
[337837376,1726147708468,-165.31,0.00013411,2]
[337837378,1726147708494,-250.0,0.00013433,2]
[337837379,1726147708522,-300.0,0.00013469,2]
[337837381,1726147708551,-800.40186806,0.0001347,2]
[337837382,1726147733730,226.23,0.00013,2]
[337837383,1726147769771,533.82,0.00011646,2]
[337837401,1726147832362,-2043.9145,0.00013364,2]
[337837405,1726147832371,-165.47941094,0.0001337,2]
[337837407,1726147832380,-250.0,0.0001347,2]
[337837410,1726147832390,-150.24,0.00013527,2]
[337837412,1726147832399,-800.0,0.00013543,2]
[337837413,1726147832408,-162.77,0.00013564,2]
[337837416,1726147832418,-160.65,0.00013643,2]
[337837418,1726147832427,-4084.3711218,0.00013879,2]
[337837419,1726147832436,-200.0,0.00013901,2]
[337837420,1726147832445,-206.12,0.00013904,2]
[337837421,1726147832456,-8103.12,0.00013904,2]
[337837422,1726147832466,-533.82,0.0001391,2]
[337837423,1726147832475,-173.39,0.00013919,2]
[337837424,1726147832484,-201.141614,0.00013924,2]
[337837425,1726147832493,-201.141614,0.00014098,2]
[337837426,1726147832502,-201.141614,0.00014272,2]
[337837427,1726147832511,-201.141614,0.00014446,2]
[337837428,1726147832521,-421.53684401,0.00014496,2]
[337837429,1726147832530,-339.99999899,0.00014567,2]
[337837430,1726147832539,-239.673,0.0001462,2]
[337837431,1726147832548,-201.141614,0.0001462,2]
[337837432,1726147832558,-158.27345598,0.0001462,2]
[337837433,1726147832567,-352.49262757,0.00014683,2]
[337837434,1726147832576,-15713.5943,0.00014684,2]
[337837435,1726147832586,-775.2076,0.00014684,2]
[337837436,1726147832595,-289.29629912,0.00014684,2]
[337837438,1726147832604,-289.29629907,0.00014685,2]
[337837440,1726147832613,-289.29629907,0.00014686,2]
[337837442,1726147832623,-289.29629907,0.00014687,2]
[337837444,1726147832631,-289.29629907,0.00014688,2]
[337837446,1726147832641,-289.29629907,0.0001469,2]
[337837448,1726147832650,-289.29629907,0.00014691,2]
[337837450,1726147832659,-289.29629907,0.00014692,2]
[337837452,1726147832669,-271.53360149,0.00014694,2]
[337837454,1726147832678,-13447.18513121,0.00014694,2]
[337837455,1726147832687,-182.91452335,0.00014694,2]
[337837457,1726147832696,-336.81543073,0.00014694,2]
[337837458,1726147832706,-1012.806068,0.000147,2]
[337837460,1726147832715,-150.0,0.000147,2]
[337837462,1726147832724,-152.0,0.00014706,3]
[337837464,1726147832734,-502.16974805,0.0001478,2]
[337837466,1726147832743,-151.02,0.0001478,2]
[337837467,1726147832752,-2008.6789922,0.00014784,2]
[337837469,1726147832761,-4017.3579844,0.00014784,2]
[337837471,1726147832770,-45180.9444529,0.00014784,2]
[337837473,1726147832784,-1108.19691343,0.00014784,2]
[337837477,1726147832806,-1289.065259,0.00014784,2]
[337837479,1726147832817,-17699.9359719,0.00014784,2]
[337837482,1726147832839,-1516.45208888,0.00014784,2]
[337837499,1726147838273,-479.23585153,0.00013543,2]
[337837500,1726147838284,-500.0,0.00013543,2]
[337837501,1726147838297,-1856.5631075,0.00013543,2]
[337837502,1726147838309,-11154.49617363,0.00013543,2]
[337837503,1726147838318,-289.29629907,0.00014693,2]
[337837504,1726147838327,-1000.0,0.0001472,2]
[337837505,1726147838337,-1000.0,0.0001472,2]
[337837506,1726147838346,-279.854,0.0001472,2]
[337837507,1726147838356,-4273.07538936,0.00014784,2]
[337837508,1726147838368,-586.27968751,0.00014784,2]
[337837509,1726147838381,-145536.45364002,0.00014784,2]
[337837510,1726147838391,-2653.39093,0.00014784,2]
[337837511,1726147838401,-983.75361452,0.00014789,2]
[337837512,1726147838410,-222642.63162651,0.0001479,2]
[337837513,1726147838419,-204.0,0.0001479,2]
[337837514,1726147838429,-1177.00962319,0.00014793,2]
[337837515,1726147838438,-152.17139413,0.00014793,2]
[337837516,1726147838448,-31698.30785668,0.00014794,2]
[337837517,1726147838459,-734.84497895,0.00014794,2]
[337837518,1726147838479,-1656.96940033,0.00014794,2]
[337837519,1726147838491,-496.804842,0.00014794,2]
[337837520,1726147838503,-775.44461026,0.00014794,2]
[337837521,1726147838514,-300.32,0.00014794,2]
[337837522,1726147838548,-669.980028,0.00014794,2]
[337837523,1726147838577,-24059.66385186,0.00014794,2]
[337837524,1726147838588,-2820.05345421,0.00014794,2]
[337837525,1726147838599,-2113.79878045,0.00014794,2]
[337837526,1726147838609,-253.034483,0.00014794,2]
[337837527,1726147838618,-500.0,0.00014794,2]
[337837528,1726147838629,-500.0,0.00014794,2]
[337837529,1726147838638,-565.0870806,0.00014794,2]
[337837530,1726147838648,-1382.3037022,0.00014794,2]
[337837531,1726147838666,-440.1604635,0.00014794,2]
[337837541,1726147840553,-289.29629907,0.00014694,2]
[337837542,1726147840563,-291.265,0.00014794,2]
[337837543,1726147840573,-558.8,0.00014794,2]
[337837544,1726147840582,-1080.7,0.00014794,2]
[337837545,1726147840592,-1080.7,0.00014794,2]
[337837546,1726147840601,-1080.7,0.00014794,2]
[337837547,1726147840611,-1080.7,0.00014794,2]
[337837548,1726147840620,-500.0,0.00014794,2]
[337837549,1726147840630,-1080.7,0.00014794,2]
[337837550,1726147840640,-1080.7,0.00014794,2]
[337837551,1726147840649,-1080.7,0.00014794,2]
[337837552,1726147840659,-1080.7,0.00014794,2]
[337837553,1726147840669,-1080.7,0.00014794,2]
[337837554,1726147840679,-1080.7,0.00014794,2]
[337837555,1726147840689,-1080.7,0.00014794,2]
[337837556,1726147840699,-1080.7,0.00014794,2]
[337837558,1726147840709,-1080.7,0.00014794,2]
[337837559,1726147840722,-1080.7,0.00014794,2]
[337837560,1726147840732,-1080.7,0.00014794,2]
[337837561,1726147840741,-1080.7,0.00014794,2]
[337837562,1726147840750,-1080.7,0.00014794,2]
[337837563,1726147840760,-1080.7,0.00014794,2]
[337837564,1726147840769,-1080.7,0.00014794,2]
[337837565,1726147840778,-1080.7,0.00014794,2]
[337837566,1726147840788,-1080.7,0.00014794,2]
[337837567,1726147840797,-1080.7,0.00014794,2]
[337837568,1726147840807,-127.42864061,0.00014794,2]
[337837573,1726147846533,-1542.87954064,0.00014694,2]
[337837574,1726147846542,-953.27135939,0.00014794,2]
[337837575,1726147846551,-1080.77089886,0.00014794,2]
[337837576,1726147846561,-2389.27,0.00014794,2]
[337837577,1726147846570,-2389.27,0.00014794,2]
[337837578,1726147846580,-2389.27,0.00014794,2]
[337837579,1726147846590,-2389.27,0.00014794,2]
[337837580,1726147846599,-2389.27,0.00014794,2]
[337837581,1726147846608,-2389.27,0.00014794,2]
[337837582,1726147846617,-973.85449657,0.00014794,2]
[337837583,1726147846795,-1415.41550343,0.00014794,2]
[337837584,1726147846805,-2389.27,0.00014794,2]
[337837585,1726147846814,-2204.56370532,0.00014794,2]
[337837592,1726148169506,163.37,0.00010959,2]
[337837594,1726148320258,496.57,0.00011811,2]
[337837599,1726148618510,4000.0,0.000134,21]
[337837601,1726148732548,1050.0,0.00011,2]
[337837617,1726148906095,487.02,0.00011408,2]
[337837628,1726149031412,-201.24993196,0.00013197,2]
[337837629,1726149031427,-420.1107,0.0001323,2]
[337837630,1726149031436,-2000.0,0.00013297,2]
[337837631,1726149031445,-170.29,0.00013299,2]
[337837632,1726149031455,-1000.0,0.00013434,2]
[337837633,1726149031465,-162.78,0.00013465,2]
[337837634,1726149031475,-250.0,0.00013551,2]
[337837635,1726149031484,-2645.13647583,0.00013551,2]
[337837642,1726149031913,-504.581576,0.00013551,2]
[337837643,1726149031947,-42.6560468,0.00013578,2]
[337837644,1726149032082,-257.3439532,0.00013578,2]
[337837645,1726149032092,-27.95305968,0.00013579,2]
[337837646,1726149032104,-1039.14973622,0.00013579,2]
[337837647,1726149032116,-13858.8372041,0.00013579,2]
[337837648,1726149032126,-499.99,0.00013579,2]
[337837649,1726149032135,-182.26,0.00013604,2]
[337837650,1726149032145,-150.24,0.00013604,2]
[337837651,1726149032155,-150.0,0.00013616,2]
[337837652,1726149032167,-1668.28,0.00013616,2]
[337837653,1726149032176,-150.99,0.00013616,2]
[337837654,1726149032185,-197.27,0.00013617,2]
[337837655,1726149032194,-250.0,0.00013626,2]
[337837656,1726149032203,-182.26,0.00013638,2]
[337837657,1726149032212,-250.0,0.00013653,2]
[337837658,1726149032221,-182.26,0.00013672,2]
[337837659,1726149032230,-487.02,0.00013672,2]
[337837660,1726149032239,-162.26,0.00013719,2]
[337837661,1726149032248,-238.07,0.00013787,2]
[337837662,1726149032257,-2825.42817237,0.00013891,2]
[337837663,1726149032266,-3977.25,0.0001394,2]
[337837664,1726149032275,-179.26,0.00014167,2]
[337837665,1726149032284,-1459.0,0.000145,2]
[337837666,1726149032293,-300.0,0.00014619,2]
[337837667,1726149032302,-150.0,0.00014619,2]
[337837668,1726149032311,-421.53684401,0.00014638,2]
[337837669,1726149032321,-2681.87,0.00014684,2]
[337837670,1726149032331,-1867.8501,0.00014684,2]
[337837671,1726149032342,-517.0049688,0.00014684,2]
[337837672,1726149032351,-171.6646934,0.00014684,2]
[337837673,1726149032360,-310.39588909,0.00014684,2]
[337837674,1726149032369,-517.00496875,0.00014685,2]
[337837675,1726149032379,-517.00496875,0.00014686,2]
[337837676,1726149032388,-517.00496875,0.00014687,2]
[337837677,1726149032397,-517.00496875,0.00014688,2]
[337837678,1726149032406,-517.00496875,0.0001469,2]
[337837679,1726149032418,-961.3935,0.0001469,2]
[337837680,1726149032429,-500.0,0.0001469,2]
[337837681,1726149032439,-517.00496875,0.00014691,2]
[337837682,1726149032448,-517.00496875,0.00014692,2]
[337837683,1726149032458,-517.00496875,0.00014693,2]
[337837684,1726149032467,-1448.2095,0.00014694,2]
[337837685,1726149032476,-461.60712254,0.00014694,2]
[337837686,1726149032485,-517.00496875,0.00014694,2]
[337837687,1726149032495,-278.65301874,0.00014694,2]
[337837688,1726149032505,-1227.93597842,0.00014694,2]
[337837689,1726149032514,-2002.44,0.000147,2]
[337837690,1726149032523,-180.184745,0.000147,2]
[337837691,1726149032532,-152.67502348,0.00014705,2]
[337837692,1726149032541,-199.0156199,0.00014773,2]
[337837693,1726149032550,-1372.71093522,0.00014773,2]
[337837694,1726149032559,-150.99,0.00014774,2]
[337837695,1726149032568,-242.302,0.00014783,2]
[337837696,1726149032577,-151.655,0.00014783,2]
[337837697,1726149032587,-69703.8451146,0.00014783,2]
[337837698,1726149032603,-342.1,0.00014783,2]
[337837699,1726149032645,-9094.75123112,0.00014783,2]
[337837700,1726149032656,-966.03305,0.00014783,2]
[337837701,1726149032668,-277.9595,0.00014783,2]
[337837702,1726149032679,-1759.92,0.00014783,2]
[337837751,1726149038189,-1456.67409584,0.00014783,2]
[337837875,1726149039581,-5800.8,0.00014783,2]
[337837877,1726149039592,-913.1421231,0.00014783,2]
[337837879,1726149039604,-2741.85865011,0.00014783,2]
[337837882,1726149039623,-408.10684988,0.00014783,2]
[337837884,1726149039633,-289.36787,0.00014783,2]
[337837886,1726149039647,-222429.55256024,0.00014783,2]
[337837888,1726149039656,-6328.39170754,0.00014784,2]
[337837889,1726149039665,-132896.225858,0.00014784,2]
[337837891,1726149039676,-18600.48576323,0.00014784,2]
[337837893,1726149039685,-196.16827053,0.00014793,2]
[337837895,1726149039695,-152.42290487,0.00014793,2]
[337837897,1726149039704,-515.0,0.00014794,2]
[337837898,1726149039713,-209991.4315148,0.00014794,2]
[337837900,1726149039723,-5233.83,0.00014794,2]
[337837902,1726149039732,-5233.83,0.00014794,2]
[337837903,1726149039741,-5233.83,0.00014794,2]
[337837905,1726149039750,-5233.83,0.00014794,2]
[337837907,1726149039760,-5233.83,0.00014794,2]
[337837909,1726149039770,-5233.83,0.00014794,2]
[337837910,1726149039779,-5233.83,0.00014794,2]
[337837912,1726149039788,-5233.83,0.00014794,2]
[337837914,1726149039797,-5233.83,0.00014794,2]
[337837916,1726149039807,-5233.83,0.00014794,2]
[337837917,1726149039816,-5233.83,0.00014794,2]
[337837919,1726149039825,-5233.83,0.00014794,2]
[337837921,1726149039834,-5233.83,0.00014794,2]
[337837923,1726149039845,-5233.83,0.00014794,2]
[337837925,1726149039854,-5233.83,0.00014794,2]
[337837926,1726149039864,-5233.83,0.00014794,2]
[337837928,1726149039873,-5233.83,0.00014794,2]
[337837930,1726149039882,-5233.83,0.00014794,2]
[337837932,1726149039892,-5233.83,0.00014794,2]
[337837934,1726149039902,-5233.83,0.00014794,2]
[337837935,1726149039911,-5233.83,0.00014794,2]